Cogmind - Beta 15 @@@ ROGUE MODE // 2025.08.20 @ 01:50:08 Player: Naughtyusername Result: Destroyed by G-34 Mercenary with Small Laser Performance ------------- Evolutions (0) 0 Regions Visited (1) 200 Robots Destroyed (9) 45 Value Destroyed (178) 178 Prototype IDs (0) 0 Alien Tech Used (0) 0 Bonus (0) 0 TOTAL SCORE: 423 Bonus ------- None Cogmind --------- Core Integrity 0/250 Matter 300/300 Energy 100/100 System Corruption 0% Temperature Cool (84) Movement Rolling (115) Ox1 Location -10/Materials Parts ------- > --- POWER (1) -------- (None) > --- PROPULSION (2) --- Compact Wheel Compact Wheel > --- UTILITY (2) ------ High-capacity Storage Unit > --- WEAPON (2) ------- (None) > --- INVENTORY (20) --- Small Storage Unit Peak State ------------ > --- POWER ------------ Ion Engine > --- PROPULSION ------- Wheel Compact Wheel > --- UTILITY ---------- High-capacity Storage Unit Seismic Detector > --- WEAPON ----------- EM Pulse Gun Medium Laser > --- INVENTORY -------- Compact Wheel Compact Wheel Small Storage Unit [Rating: 7] Favorites ----------- Power Ion Engine Engine Ion Engine Propulsion Compact Wheel Wheel Compact Wheel Utility Small Storage Unit Device Seismic Detector Storage Small Storage Unit Weapon Medium Laser Energy Gun Medium Laser Build | -11 -10 ------- Run | Yrd Mat Slots Evolved . | . . Power . | . . Propulsion . | . . Utility . | . . Weapon . | . . Parts Attached 12 | 6 6 Power 2 | 1 1 Engine 2 | 1 1 Core . | . . Reactor . | . . Propulsion 4 | 2 2 Treads . | . . Leg . | . . Wheel 4 | 2 2 Hover . | . . Flight . | . . Utility 3 | 1 2 Device 1 | . 1 Storage 2 | 1 1 Processor . | . . Hackware . | . . Protection . | . . Artifact . | . . Weapon 3 | 2 1 Energy Gun 3 | 2 1 Energy Cannon . | . . Ballistic Gun . | . . Ballistic Cannon . | . . Launcher . | . . Special Weapon . | . . Impact Weapon . | . . Slashing Weapon . | . . Piercing Weapon . | . . Special Melee Weapon . | . . Unidentified Prototypes . | . . Parts Lost 7 | . 7 Power 2 | . 2 Propulsion 2 | . 2 Utility 1 | . 1 Weapon 2 | . 2 Highest Loss Streak 6 | . 6 To Critical Strikes . | . . Average Backups 2 | . 2 Power . | . . Propulsion 1 | . 1 Utility . | . . Weapon . | . . Tool/Special . | . . Unused Backups 1 | . 1 Power . | . . Propulsion 1 | . 1 Utility . | . . Weapon . | . . Tool/Special . | . . Average Slot Usage (%) 78 | . 78 Engine 12 | . 12 Wheel 24 | . 24 Device 4 | . 4 Storage 14 | . 14 Energy Gun 22 | . 22 Peak Build Rating 7 | 6 7 Average Rating 5 | 4 5 On Entrance 3 | . 6 Naked Turns . | . . Heaviest Build 50 | 14 50 Greatest Support 32 | 26 32 Greatest Overweight (x) 1 | . 1 Average Overweight (x) . | . . Largest Inventory Capacity 20 | 8 20 Average Capacity 12 | 7 13 Most Carried 4 | 1 4 Average Carried 2 | . 2 Final Capacity 20 | 8 20 Final Carried 1 | 1 1 Class Distribution -------------------- 100% | Mutant Dominant Class ---------------- Mutant | -10/Materials Resources | -11 -10 ----------- Run | Yrd Mat Matter Collected 305 | 224 81 Remotely . | . . Salvage Created 310 | . 310 Parts 15 | . 15 Haulers Intercepted . | . . Recyclers Shooed . | . . Parts Field Recycled . | . . Retrieved Matter . | . . Parts Self-Destructed . | . . Prevented . | . . Kills | -11 -10 ------- Run | Yrd Mat Combat Hostiles Destroyed 8 | . 8 Guns 8 | . 8 Classes Destroyed 3 | . 3 Recycler 1 | . 1 Swarmer 5 | . 5 Grunt 3 | . 3 Best Kill Streak 3 | . 3 Combat Bots Only 3 | . 3 Max Kills in Single Turn 2 | . 2 Gunslinging 1 | . 1 Exploded . | . . Melee . | . . Uniques/NPCs Destroyed . | . . Combat | -11 -10 -------- Run | Yrd Mat Hostile Shots Fired 78 | . 78 Missed 19 | . 19 Hits 59 | . 59 Projectile 59 | . 59 Damage Taken 626 | . 626 Core 256 | . 256 Absorbed by Shields . | . . Core Remaining (%) 100 | 100 . Volleys Fired 37 | . 37 Largest 2 | . 2 Hottest 90 | . 90 Shots Fired 56 | . 56 Gun 56 | . 56 Cannon . | . . Launcher . | . . Special . | . . Kinetic . | . . Thermal 34 | . 34 Explosive . | . . Electromagnetic 22 | . 22 Robot Hit Streak 9 | . 9 Robot Miss Streak 3 | . 3 Penetration Max . | . . Secondary Targets 1 | . 1 Max Gunslinging Chain 1 | . 1 Shots Hit Robots 35 | . 35 Core Hits 13 | . 13 Critical Kills . | . . Critical Parts Destroyed . | . . Critical Strikes . | . . Melee Attacks . | . . Impact . | . . Slashing . | . . Piercing . | . . Sneak Attacks . | . . Combat Hostiles . | . . Follow-up Attacks . | . . Damage Inflicted 383 | . 383 Guns 383 | . 383 Cannons . | . . Explosions . | . . Melee . | . . Ramming . | . . Kinetic . | . . Thermal 262 | . 262 Explosive . | . . Electromagnetic 121 | . 121 Impact . | . . Slashing . | . . Piercing . | . . Highest Corruption . | . . Average Corruption . | . . Corruption Purged . | . . Corruption Blocked . | . . Overload Shots . | . . Overflow Damage . | . . Projectiles . | . . Explosions . | . . Melee . | . . Knockbacks . | . . Impact . | . . Kinetic . | . . Secondary . | . . Self-Inflicted Damage . | . . Shots . | . . Rammed . | . . Targets Rammed . | . . Kicked . | . . Crushed . | . . Highest Temperature 404 | . 404 Average Temperature 167 | . 167 Received Heat Transfer 300 | . 300 Effects 2 | . 2 Interference 1 | . 1 Short Circuit 1 | . 1 Siege Activations . | . . Martial Activations . | . . Shielding Activations . | . . Robots Disrupted . | . . Combat Hostiles . | . . Robots Corrupted . | . . Combat Hostiles . | . . Parts Fried . | . . Impact Corruptions . | . . Robots Melted . | . . Combat Hostiles . | . . Parts Melted 4 | . 4 Heat Transferred 777 | . 777 Parts Sabotaged . | . . Parts Stolen . | . . Parts Stripped . | . . Power Chain Reactions . | . . Alert | -11 -10 ------- Run | Yrd Mat Maximum Alert Level . | . . Low Security (%) 100 | 100 100 Level 1 . | . . Level 2 . | . . Level 3 . | . . Level 4 . | . . Level 5 . | . . High Security . | . . Max Security . | . . Peak Influence 85 | . 85 Initial . | . . Average 34 | . 39 Influence Increases 285 | . 285 Destroy 0b10 Robot/C 160 | . 160 Destroy 0b10 Robot/NC 5 | . 5 Destroy Leader 30 | . 30 Disable Machine 30 | . 30 Lose Combat Pursuer 60 | . 60 Influence Decreases 220 | . 220 Time Decay 150 | . 150 Lost Part 70 | . 70 Squads Dispatched 4 | . 4 Investigation 3 | . 3 Extermination . | . . Reinforcement 1 | . 1 Assault . | . . Garrison . | . . Intercept . | . . Searches Triggered . | . . Construction Impeded . | . . Haulers Reinforced . | . . Active Scanning Responses . | . . Cargo Convoy Interrupts . | . . Stealth | -11 -10 --------- Run | Yrd Mat Distress Signals 2 | . 2 Communications Jammed . | . . Distress Signals . | . . Times Spotted 13 | . 13 Peak Tracking Total 7 | . 7 Tactical Retreats 3 | . 3 Traps | -11 -10 ------- Run | Yrd Mat Traps Triggered 4 | . 4 Indirectly . | . . Trap Hack Attempts . | . . Triggered . | . . Disarmed . | . . Reprogrammed . | . . Reused . | . . Traps Extracted . | . . Installed . | . . Triggered . | . . Machines | -11 -10 ---------- Run | Yrd Mat Machines Disabled 2 | . 2 Max in Single Turn 1 | . 1 Machines Repaired . | . . Machines Dismantled . | . . Machines Sabotaged . | . . Overloaded Fab Kills . | . . Hacking | -11 -10 --------- Run | Yrd Mat Machines Accessed . | . . Terminals . | . . Fabricators . | . . Repair Stations . | . . Recycling Units . | . . Scanalyzers . | . . Garrison Access . | . . Total Hacks . | . . Successful . | . . Failed . | . . Catastrophic . | . . Database Lockouts . | . . Manual . | . . Terminals . | . . Fabricators . | . . Repair Stations . | . . Recycling Units . | . . Scanalyzers . | . . Garrison Access . | . . Terminal Hacks . | . . Fabricator Hacks . | . . Repair Station Hacks . | . . Recycling Unit Hacks . | . . Scanalyzer . | . . Garrison Access Hacks . | . . Unauthorized Hacks . | . . Terminals . | . . Fabricators . | . . Repair Stations . | . . Recycling Units . | . . Scanalyzers . | . . Garrison Access . | . . Data Cores Recovered . | . . Used . | . . Hacking Detections . | . . Full Trace Events . | . . Feedback Events . | . . Feedback Blocked . | . . Robot Schematics Acquired . | . . Robots Built . | . . Authchips . | . . Time . | . . Total Robot Build Rating . | . . Part Schematics Acquired . | . . Parts Built . | . . Authchips . | . . Time . | . . Total Part Build Rating . | . . Parts Repaired . | . . Time . | . . Parts Recycled . | . . Recycled Matter . | . . Retrieved Matter . | . . Retrieved Components . | . . Parts Scanalyzed . | . . Part Schematics Acquired . | . . Parts Damaged . | . . Bothacking | -11 -10 ------------ Run | Yrd Mat Used RIF Installer . | . . Robots Hacked . | . . Non-combat . | . . Combat . | . . Robot Hacks Applied . | . . Relay Couplers Released . | . . Fabnet Peak Effective % . | . . Robots Rewired . | . . Allies Hacked . | . . Hacks Repelled . | . . Allies | -11 -10 -------- Run | Yrd Mat Total Allies . | . . Largest Group . | . . Highest-Rated Group . | . . Highest-Rated Ally . | . . Total Orders . | . . Ally Attacks . | . . Total Damage . | . . Kills . | . . Allies Corrupted . | . . Allies Melted . | . . Intel | -11 -10 ------- Run | Yrd Mat Active Infowar (turns) 104 | . 104 Seismic 104 | . 104 Robot Analysis Total . | . . Derelict Logs Recovered . | . . Drone Launches . | . . Drone Recoveries . | . . Exploration | -11 -10 ------------- Run | Yrd Mat Turns Passed 379 | 46 333 Spaces Moved 265 | 42 223 Core 3 | 3 . Treads . | . . Legs . | . . Wheels 262 | 39 223 Hover . | . . Flight . | . . Fastest Speed 50 | 50 90 Average Speed 93 | 87 94 Slowest Speed 115 | 100 115 Overloaded Moves . | . . Propulsion Burnouts . | . . Robots Hopped . | . . Potential Cave-ins . | . . Cave-ins Triggered . | . . Exploration Rate (%) 27 | 3 51 Regions Visited 1 Branch Regions . Pre-discovered Areas . | . . Known Exits Taken . | . . Unknown Exits Taken 1 | 1 . Scrap Searched . | . . Spaces Dug . | . . Terrain Destroyed . | . . Melee . | . . Projectile . | . . AOE . | . . Terrain Rammed . | . . Walls Destroyed . | . . Machines Disabled . | . . Actions | -11 -10 --------- Run | Yrd Mat Total 335 | 48 287 Wait 15 | . 15 Move 264 | 41 223 Hop . | . . Pick Up 4 | 1 3 Fast Attach 10 | 6 4 Attach 3 | . 3 Detach . | . . Swap 1 | . 1 Drop 1 | . 1 Fire 37 | . 37 Melee . | . . Ram . | . . Kick . | . . Crush . | . . Escape Stasis . | . . Rewire . | . . Trap . | . . Miscellaneous . | . . Route ------- -11/Scrapyard -10/Materials (discovered 2 exits: [*Mat] / [*Min]) History --------- Turn | Location | Event 4 | -11/Scrapyard | Discovered new exit (range 16) 47 | -11/Scrapyard | Entered Materials 47 | -10/Materials | Discovered new exit (range 15) 161 | -10/Materials | Discovered new exit (range 10) 303 | -10/Materials | Build established: Mutant 340 | -10/Materials | Core integrity fell below 50% 361 | -10/Materials | Core integrity fell below 20% 380 | -10/Materials | Destroyed by G-34 Mercenary with Small Laser Last Messages --------------- 00321_ Electrolysis Chamber disabled. 00322_ Com. Wheel destroyed. 00327_ Heat Sink melted. 00327_ G-34 Mercenary destroyed. 00334_ Overheating: System interference. 00334_ Med. Laser temporarily disabled. 00335_ U-05 Engineer lays Concrete. 00340_ Ion Engine broken. 00340_ Overheating: Short circuit. 00340_ Seismic Detector destroyed. 00341_ G-34 Mercenary misfires. 00342_ EM Pulse Gun destroyed. 00342_ G-34 Mercenary destroyed. 00353_ Broken Ion Engine destroyed. 00356_ Aluminum Leg melted. 00356_ Heat Sink melted. 00356_ G-34 Mercenary destroyed. 00364_ Med. Laser destroyed. 00378_ R-06 Scavenger collects Sml. Laser. 00379_ Acquired 29 matter. Map ----- +----------------------------------------------------+ | ??????????????????????# #?????????????????# | | ??????????????????????# ################### | | ??#########???????????# % +% = + | | ??# #???????##### % # # | | ??# ######### ##+#### ##+# | | ??# < # | | ??######+########## ## # | | ??# #####+### # | | ??# ## % # # | | ??# " """"" ## # # | | ??# """"""""" ## # ############## # | | ??# """ """ ## """ + #???#######??# # | | ??############### """ # ##########???# ??# # | | ????????????????# """ # ?#?######### ""?#=# | | ????????????????######## ## # T"##%# | | ???????????????????????# ## """"" # ""##/# | | ???????????????????????# #### """"" # ## | | ???????????????????????##???# """"" # ## | | ????????????????????????????# # ## " | | ????????????????????????????# # ## " | | ??????????????????########### # ## " | | ??????????????????# ## # ??# | | ??????????????????# """########+### ????### | | ??????????????????# ""###### ##/######### | | ??????????????????# g* "# + | | ??????????????????# [%@ r # | | ??????????????????# ""%# k # | | ??????????????????# """###### ####### # | | ??????????????????# ! """#????## ## # ## | | ??????????????????# #?????# ## + | | ??????????????????##########?????# ## """ # | | ?????????????????????????????????# ## """ # | | ?????????????????????????????????# ## """?# ## | | ????????????????????????????????? # ?# #? | | ???????????????????????????????? # ""??# #? | | ??????????????????????????????? T # ""??#= [#? | | ??????????????????????????????? # "???# * ## | | ???????????????????????????????## #?????# # | | ???????????????????????????????########?????# ## | | ???????????????????????????????# ##### ## | | ???????????????????????????????# # | | ???????????????????????????????# + | | ???????????????????????????????# ""# | | ???????????????????????????????# """ T"# """ | | ???????????????????????????????# """ "?# ! """ | | ???????????????????????????????????"" ?#!!! """ | | ???????????????????????????????????###??#!! | | ????????????????????????????????????????# | | ????????????????????????????????????????# """ | | ????????????????????????????????????????# """ | +----------------------------------------------------+ Best States ------------- Heat Dissipation 25 Energy Generation 10 Energy Capacity 250 Matter Stores 300 Matter Capacity 300 Sight Range 16 Terrain Scan Density 10 Evasion (%) 42 Item Schematics ----------------- None Robot Schematics ------------------ None Fabricated ------------ Nothing Repaired ---------- Nothing Alien Tech Used ----------------- None Achievements -------------- None Challenges ------------ None Game ------ Seed BoltExpertAccelerator Manual? 0 Play Time 00:04:39 Cumulative 118.3 hours Start 2025.08.20 @ 01:03:18 End 2025.08.20 @ 01:50:08 Sessions 2 Manual Loads 0 Difficulty Rogue Special Mode None Game No. 55 Rogue 55 Adventurer 0 Explorer 0 Win Type - Total 1 Types 0/0/1/0/0/0/0/0/0/0 Lore% 72 Gallery% 60 Achievement% 76 Wizard Run 0 Options --------- Layout 2 ASCII 0 Keyboard 1 Movement Vi Keybinds 0 Fullscreen 1 Font 28/SwanstonBold Map View 50x52 Zoom Use 0% Tactical HUD 1 Map Filters NONE Filters NONE Steam 1 RUN: ea0668fb-3ebc-4206-85da-b240a77a0f44